[Event "ONJK 2024 ABC"]
[Site "Velp, Netherlands"]
[Date "2024.08.07"]
[Round "7.16"]
[White "Hesse, Frederik"]
[Black "Meert, Maarin"]
[Result "0-1"]
[TimeControl "90 minutes + 30 seconds"]
[WhiteElo "1684"]
[BlackElo "1811"]

1. d4 {[%clk 01:30:48]} {[%emt 00:00:08]} d5 {[%clk 01:30:59]} {[%emt
00:00:04]} 2. c4 {[%clk 01:31:10]} {[%emt 00:00:09]} c6 {[%clk 01:31:25]}
{[%emt 00:00:03]} 3. Nc3 {[%clk 01:31:33]} {[%emt 00:00:08]} Nf6 {[%clk
01:31:51]} {[%emt 00:00:03]} 4. Bf4 {[%clk 01:31:45]} {[%emt 00:00:18]} e6
{[%clk 01:30:10]} {[%emt 00:02:12]} 5. Nf3 {[%clk 01:32:00]} {[%emt 00:00:15]}
Bd6 {[%clk 01:30:04]} {[%emt 00:00:36]} 6. Bg3 {[%clk 01:32:18]} {[%emt
00:00:11]} O-O {[%clk 01:29:08]} {[%emt 00:01:26]} 7. e3 {[%clk 01:32:41]}
{[%emt 00:00:07]} Re8 {[%clk 01:22:29]} {[%emt 00:07:09]} 8. Bd3 {[%clk
01:31:41]} {[%emt 00:01:30]} Bc7 {[%clk 01:19:30]} {[%emt 00:03:29]} 9. O-O
{[%clk 01:31:12]} {[%emt 00:00:58]} Bxg3 {[%clk 01:19:25]} {[%emt 00:00:36]} 10.
hxg3 {[%clk 01:31:19]} {[%emt 00:00:24]} Nbd7 {[%clk 01:19:40]} {[%emt
00:00:14]} 11. Ne5 {[%clk 01:31:02]} {[%emt 00:00:47]} Nxe5 {[%clk 01:16:54]}
{[%emt 00:03:16]} 12. dxe5 {[%clk 01:31:22]} {[%emt 00:00:10]} Nd7 {[%clk
01:17:19]} {[%emt 00:00:05]} 13. f4 {[%clk 01:31:00]} {[%emt 00:00:52]} Qb6
{[%clk 01:13:41]} {[%emt 00:04:07]} 14. Qd2 {[%clk 01:26:30]} {[%emt 00:04:55]}
Nc5 {[%clk 01:11:47]} {[%emt 00:02:29]} 15. Bc2 {[%clk 01:25:50]} {[%emt
00:01:10]} dxc4 {[%clk 01:10:18]} {[%emt 00:01:59]} 16. Rad1 {[%clk 01:24:43]}
{[%emt 00:01:37]} Bd7 {[%clk 01:04:26]} {[%emt 00:06:22]} 17. Ne4 {[%clk
01:23:20]} {[%emt 00:01:54]} Nxe4 {[%clk 01:03:35]} {[%emt 00:01:21]} 18. Bxe4
{[%clk 01:23:42]} {[%emt 00:00:07]} Rad8 {[%clk 01:02:36]} {[%emt 00:01:29]} 19.
Kh2 {[%clk 01:21:47]} {[%emt 00:02:26]} c5 {[%clk 00:56:48]} {[%emt 00:06:18]}
20. Qc2 {[%clk 01:21:17]} {[%emt 00:00:59]} h6 {[%clk 00:54:37]} {[%emt
00:02:39]} 21. Qxc4 {[%clk 01:20:04]} {[%emt 00:01:44]} Bb5 {[%clk 00:54:28]}
{[%emt 00:00:39]} 22. Bh7+ {[%clk 01:14:30]} {[%emt 00:06:04]} Kxh7 {[%clk
00:52:22]} {[%emt 00:02:35]} 23. Qc2+ {[%clk 01:14:15]} {[%emt 00:00:45]} Kg8
{[%clk 00:52:36]} {[%emt 00:00:16]} 24. Rf2 {[%clk 01:13:36]} {[%emt 00:01:10]}
Rxd1 {[%clk 00:52:58]} {[%emt 00:00:07]} 25. Qxd1 {[%clk 01:13:58]} {[%emt
00:00:09]} Rd8 {[%clk 00:53:16]} {[%emt 00:00:11]} 26. Qc2 {[%clk 01:13:23]}
{[%emt 00:01:05]} c4 {[%clk 00:50:33]} {[%emt 00:03:13]} 27. a4 {[%clk
01:13:18]} {[%emt 00:00:35]} Ba6 {[%clk 00:50:56]} {[%emt 00:00:07]} 28. f5
{[%clk 01:10:35]} {[%emt 00:03:12]} exf5 {[%clk 00:48:06]} {[%emt 00:03:20]} 29.
Qxf5 {[%clk 01:10:57]} {[%emt 00:00:08]} Qe6 {[%clk 00:48:27]} {[%emt
00:00:10]} 30. Qh5 {[%clk 01:08:11]} {[%emt 00:03:16]} Rd5 {[%clk 00:46:28]}
{[%emt 00:02:28]} 31. b3 {[%clk 01:01:51]} {[%emt 00:06:50]} Rxe5 {[%clk
00:46:06]} {[%emt 00:00:51]} 32. Qd1 {[%clk 01:01:47]} {[%emt 00:00:34]} cxb3
{[%clk 00:45:40]} {[%emt 00:00:56]} 33. Qd8+ {[%clk 01:01:22]} {[%emt
00:00:56]} Kh7 {[%clk 00:45:39]} {[%emt 00:00:30]} 34. Qc7 {[%clk 01:01:40]}
{[%emt 00:00:13]} Rh5+ {[%clk 00:45:47]} {[%emt 00:00:21]} 35. Kg1 {[%clk
01:01:59]} {[%emt 00:00:12]} Qxe3 {[%clk 00:45:55]} {[%emt 00:00:21]} 36. Qxf7
{[%clk 01:02:05]} {[%emt 00:00:25]} Qe1+ {[%clk 00:45:58]} {[%emt 00:00:27]} 37.
Rf1 {[%clk 01:02:14]} {[%emt 00:00:21]} Qxf1+ {[%clk 00:46:17]} {[%emt
00:00:11]} 38. Qxf1 {[%clk 01:02:39]} {[%emt 00:00:04]} Bxf1 {[%clk 00:46:42]}
{[%emt 00:00:06]} 39. Kxf1 {[%clk 01:03:02]} {[%emt 00:00:07]} b2 {[%clk
00:47:06]} {[%emt 00:00:05]} 40. a5 {[%clk 01:03:21]} {[%emt 00:00:11]} b1=Q+
{[%clk 00:47:26]} {[%emt 00:00:10]} 41. Ke2 {[%clk 01:03:26]} {[%emt 00:00:26]}
Qe4+ {[%clk 00:47:50]} {[%emt 00:00:06]} 42. Kf2 {[%clk 01:03:47]} {[%emt
00:00:09]} Rf5+ {[%clk 00:48:12]} {[%emt 00:00:07]} 43. Kg1 {[%clk 01:04:12]}
{[%emt 00:00:06]} Qe3+ {[%clk 00:48:36]} {[%emt 00:00:07]} 44. Kh2 {[%clk
01:04:28]} {[%emt 00:00:14]} Rh5# {[%clk 00:48:59]} {[%emt 00:00:06]} 0-1

[Event "ONJK 2024 ABC"]
[Site "Velp, Netherlands"]
[Date "2024.08.07"]
[Round "7.17"]
[White "Koorevaar, Sarah-Joy"]
[Black "De Wit, Evan"]
[Result "1/2-1/2"]
[TimeControl "90 minutes + 30 seconds"]
[WhiteElo "1531"]
[BlackElo "1782"]

1. d4 {[%clk 01:30:59]} Nf6 {[%clk 01:30:19]} {[%emt 00:00:41]} 2. c4 {[%clk
01:31:21]} {[%emt 00:00:08]} e6 {[%clk 01:30:43]} {[%emt 00:00:06]} 3. Nf3
{[%clk 01:31:48]} {[%emt 00:00:03]} d5 {[%clk 01:31:06]} {[%emt 00:00:07]} 4.
g3 {[%clk 01:32:14]} {[%emt 00:00:04]} Bd6 {[%clk 01:30:38]} {[%emt 00:00:59]}
5. Bg2 {[%clk 01:32:31]} {[%emt 00:00:13]} O-O {[%clk 01:31:00]} {[%emt
00:00:07]} 6. O-O {[%clk 01:32:58]} {[%emt 00:00:03]} c6 {[%clk 01:31:18]}
{[%emt 00:00:12]} 7. Nc3 {[%clk 01:32:40]} {[%emt 00:00:48]} Nbd7 {[%clk
01:31:38]} {[%emt 00:00:09]} 8. Qc2 {[%clk 01:32:26]} {[%emt 00:00:45]} Re8
{[%clk 01:30:47]} {[%emt 00:01:21]} 9. b3 {[%clk 01:27:28]} {[%emt 00:05:28]}
b6 {[%clk 01:31:02]} {[%emt 00:00:16]} 10. Bb2 {[%clk 01:25:36]} {[%emt
00:02:21]} Bb7 {[%clk 01:31:23]} {[%emt 00:00:09]} 11. Rac1 {[%clk 01:24:26]}
{[%emt 00:01:40]} Rc8 {[%clk 01:29:47]} {[%emt 00:02:06]} 12. Rfd1 {[%clk
01:21:21]} {[%emt 00:03:35]} c5 {[%clk 01:23:28]} {[%emt 00:06:50]} 13. dxc5
{[%clk 01:11:13]} {[%emt 00:10:38]} bxc5 {[%clk 01:22:49]} {[%emt 00:01:08]} 14.
cxd5 {[%clk 00:59:43]} {[%emt 00:11:59]} exd5 {[%clk 01:22:17]} {[%emt
00:01:02]} 15. e3 {[%clk 00:56:33]} {[%emt 00:03:40]} a6 {[%clk 01:19:29]}
{[%emt 00:03:19]} 16. Ne2 {[%clk 00:48:03]} {[%emt 00:08:59]} h6 {[%clk
01:12:00]} {[%emt 00:07:59]} 17. Nh4 {[%clk 00:39:43]} {[%emt 00:08:51]} Be5
{[%clk 01:07:44]} {[%emt 00:04:47]} 18. Bxe5 {[%clk 00:33:48]} {[%emt
00:06:25]} Nxe5 {[%clk 01:07:47]} {[%emt 00:00:26]} 19. Nf3 {[%clk 00:33:50]}
{[%emt 00:00:28]} d4 {[%clk 00:54:41]} {[%emt 00:13:36]} 20. Nxe5 {[%clk
00:31:06]} {[%emt 00:03:14]} Bxg2 {[%clk 00:54:47]} {[%emt 00:00:24]} 21. Kxg2
{[%clk 00:31:28]} {[%emt 00:00:07]} Qd5+ {[%clk 00:55:01]} {[%emt 00:00:17]} 22.
Nf3 {[%clk 00:27:36]} {[%emt 00:04:22]} g5 {[%clk 00:55:00]} {[%emt 00:00:30]}
23. e4 {[%clk 00:26:21]} {[%emt 00:01:45]} Nxe4 {[%clk 00:54:15]} {[%emt
00:01:16]} 24. Kg1 {[%clk 00:25:37]} {[%emt 00:01:14]} g4 {[%clk 00:52:22]}
{[%emt 00:02:23]} 25. Nf4 {[%clk 00:21:45]} {[%emt 00:04:21]} Qb7 {[%clk
00:51:27]} {[%emt 00:01:25]} 26. Nh4 {[%clk 00:18:56]} {[%emt 00:03:19]} Ng5
{[%clk 00:50:55]} {[%emt 00:01:02]} 27. Qf5 {[%clk 00:16:27]} {[%emt 00:02:59]}
Re4 {[%clk 00:44:48]} {[%emt 00:06:37]} 28. Qxg4 {[%clk 00:14:00]} {[%emt
00:02:58]} Kh8 {[%clk 00:43:47]} {[%emt 00:01:31]} 29. Re1 {[%clk 00:09:17]}
{[%emt 00:05:11]} Rg8 {[%clk 00:36:53]} {[%emt 00:07:26]} 30. Rxe4 {[%clk
00:05:25]} {[%emt 00:04:21]} Qxe4 {[%clk 00:37:06]} {[%emt 00:00:17]} 31. Qh5
{[%clk 00:02:11]} {[%emt 00:03:46]} Kh7 {[%clk 00:36:27]} {[%emt 00:01:08]} 32.
Nhg2 {[%clk 00:01:22]} {[%emt 00:01:19]} d3 {[%clk 00:35:52]} {[%emt 00:01:05]}
33. Qd1 {[%clk 00:00:48]} {[%emt 00:01:04]} Nf3+ {[%clk 00:35:40]} {[%emt
00:00:42]} 34. Kf1 {[%clk 00:00:46]} {[%emt 00:00:31]} Nxh2+ {[%clk 00:35:52]}
{[%emt 00:00:19]} 35. Kg1 {[%clk 00:01:02]} {[%emt 00:00:14]} Nf3+ {[%clk
00:36:11]} {[%emt 00:00:12]} 36. Kh1 {[%clk 00:01:18]} {[%emt 00:00:12]} d2
{[%clk 00:33:43]} {[%emt 00:02:59]} 37. Rxc5 {[%clk 00:01:19]} {[%emt
00:00:29]} Re8 {[%clk 00:30:40]} {[%emt 00:03:32]} 38. Rc4 {[%clk 00:00:44]}
{[%emt 00:01:04]} Qf5 {[%clk 00:26:41]} {[%emt 00:04:30]} 39. Ne3 {[%clk
00:00:32]} {[%emt 00:00:43]} Rxe3 {[%clk 00:17:47]} {[%emt 00:09:24]} 40. fxe3
{[%clk 00:00:53]} {[%emt 00:00:09]} Qg4 {[%clk 00:18:08]} {[%emt 00:00:09]} 41.
Qc2+ {[%clk 00:00:36]} {[%emt 00:00:47]} Kg7 {[%clk 00:18:15]} {[%emt
00:00:23]} 42. Qc3+ {[%clk 00:00:42]} {[%emt 00:00:24]} Kh7 {[%clk 00:17:22]}
{[%emt 00:01:23]} 43. Qc2+ {[%emt 00:08:57]} 1/2-1/2

[Event "ONJK 2024 ABC"]
[Site "Velp, Netherlands"]
[Date "2024.08.07"]
[Round "7.18"]
[White "Burger, Dominick"]
[Black "Bloemberg, Jesper"]
[Result "0-1"]
[TimeControl "90 minutes + 30 seconds"]
[WhiteElo "1686"]
[BlackElo "1692"]

1. e4 {[%clk 01:30:39]} {[%emt 00:00:21]} c5 {[%clk 01:30:54]} {[%emt
00:00:06]} 2. Nc3 {[%clk 01:30:30]} {[%emt 00:00:40]} Nc6 {[%clk 01:30:24]}
{[%emt 00:00:59]} 3. f4 {[%clk 01:30:51]} {[%emt 00:00:09]} d6 {[%clk
01:29:46]} {[%emt 00:01:07]} 4. Nf3 {[%clk 01:29:59]} {[%emt 00:01:23]} e6
{[%clk 01:27:34]} {[%emt 00:02:42]} 5. Bb5 {[%clk 01:26:50]} {[%emt 00:03:39]}
Nge7 {[%clk 01:25:04]} {[%emt 00:03:00]} 6. O-O {[%clk 01:26:51]} {[%emt
00:00:30]} a6 {[%clk 01:24:48]} {[%emt 00:00:45]} 7. Bxc6+ {[%clk 01:27:13]}
{[%emt 00:00:08]} Nxc6 {[%clk 01:25:14]} {[%emt 00:00:03]} 8. d3 {[%clk
01:27:17]} {[%emt 00:00:27]} Be7 {[%clk 01:22:41]} {[%emt 00:03:02]} 9. Qe1
{[%clk 01:26:26]} {[%emt 00:01:21]} Bf6 {[%clk 01:17:34]} {[%emt 00:05:37]} 10.
a3 {[%clk 01:25:06]} {[%emt 00:01:51]} Bd7 {[%clk 01:14:39]} {[%emt 00:03:25]}
11. Bd2 {[%clk 01:24:21]} {[%emt 00:01:15]} Qc7 {[%emt 00:04:03]} 12. Qf2
{[%clk 01:22:56]} {[%emt 00:00:40]} b5 {[%clk 01:09:38]} {[%emt 00:03:12]} 13.
e5 {[%clk 01:18:22]} {[%emt 00:05:05]} Be7 {[%clk 01:09:11]} {[%emt 00:00:55]}
14. Ne4 {[%clk 01:16:35]} {[%emt 00:02:19]} Nd8 {[%clk 01:05:05]} {[%emt
00:04:36]} 15. Be3 {[%clk 01:15:13]} {[%emt 00:01:52]} Nb7 {[%clk 01:03:49]}
{[%emt 00:01:45]} 16. c4 {[%clk 01:13:04]} {[%emt 00:02:40]} d5 {[%clk
01:01:14]} {[%emt 00:03:04]} 17. cxd5 {[%clk 01:12:25]} {[%emt 00:01:09]} exd5
{[%clk 01:01:08]} {[%emt 00:00:36]} 18. Nxc5 {[%clk 01:12:11]} {[%emt
00:00:45]} Bxc5 {[%clk 00:58:03]} {[%emt 00:03:33]} 19. Bxc5 {[%clk 01:11:47]}
{[%emt 00:00:55]} Qxc5 {[%clk 00:58:15]} {[%emt 00:00:18]} 20. d4 {[%clk
01:11:47]} {[%emt 00:00:31]} Qe7 {[%clk 00:57:27]} {[%emt 00:01:16]} 21. Nd2
{[%clk 01:11:10]} {[%emt 00:01:06]} O-O {[%clk 00:56:21]} {[%emt 00:01:37]} 22.
Qf3 {[%clk 01:10:13]} {[%emt 00:01:28]} Bc6 {[%clk 00:54:00]} {[%emt 00:02:50]}
23. Qh5 {[%clk 01:09:31]} {[%emt 00:01:11]} g6 {[%clk 00:53:27]} {[%emt
00:01:04]} 24. Qh6 {[%clk 01:09:42]} {[%emt 00:00:20]} Rfd8 {[%clk 00:52:57]}
{[%emt 00:01:00]} 25. Nf3 {[%clk 01:09:17]} {[%emt 00:00:55]} Qf8 {[%clk
00:53:09]} {[%emt 00:00:18]} 26. Qh4 {[%clk 01:07:57]} {[%emt 00:01:49]} Bd7
{[%clk 00:50:46]} {[%emt 00:02:54]} 27. g4 {[%clk 01:07:27]} {[%emt 00:01:00]}
Qg7 {[%clk 00:48:59]} {[%emt 00:02:17]} 28. Kh1 {[%clk 01:07:02]} {[%emt
00:00:54]} h6 {[%clk 00:47:45]} {[%emt 00:01:44]} 29. f5 {[%clk 01:07:00]}
{[%emt 00:00:32]} g5 {[%clk 00:47:01]} {[%emt 00:01:14]} 30. Qh5 {[%clk
01:06:24]} {[%emt 00:01:05]} f6 {[%clk 00:44:19]} {[%emt 00:03:13]} 31. Rae1
{[%clk 01:02:52]} {[%emt 00:04:03]} Be8 {[%clk 00:42:51]} {[%emt 00:01:58]} 32.
Qh3 {[%clk 01:03:14]} {[%emt 00:00:07]} Rd7 {[%clk 00:38:07]} {[%emt 00:05:14]}
33. exf6 {[%clk 01:01:40]} {[%emt 00:02:04]} Qxf6 {[%clk 00:37:51]} {[%emt
00:00:45]} 34. Re6 {[%clk 01:02:03]} {[%emt 00:00:08]} Qg7 {[%clk 00:36:32]}
{[%emt 00:01:49]} 35. Rxh6 {[%clk 01:01:37]} {[%emt 00:00:56]} Rd6 {[%clk
00:35:38]} {[%emt 00:01:24]} 36. Rxd6 {[%clk 01:01:32]} {[%emt 00:00:35]} Nxd6
{[%clk 00:35:57]} {[%emt 00:00:11]} 37. Ne5 {[%clk 01:00:31]} {[%emt 00:01:31]}
Qh7 {[%clk 00:34:35]} {[%emt 00:01:52]} 38. Qf3 {[%clk 00:59:30]} {[%emt
00:01:30]} Bf7 {[%clk 00:33:34]} {[%emt 00:01:33]} 39. Nd7 {[%clk 00:57:17]}
{[%emt 00:02:42]} Qg7 {[%clk 00:31:42]} {[%emt 00:02:21]} 40. Nb6 {[%clk
00:55:20]} {[%emt 00:02:28]} Rd8 {[%clk 00:31:51]} {[%emt 00:00:22]} 41. Nxd5
{[%clk 00:53:57]} {[%emt 00:01:51]} Qxd4 {[%clk 00:29:06]} {[%emt 00:03:14]} 42.
Ne7+ {[%clk 00:54:06]} {[%emt 00:00:23]} Kf8 {[%clk 00:28:27]} {[%emt
00:01:08]} 43. Ng6+ {[%clk 00:54:27]} {[%emt 00:00:10]} Kg7 {[%clk 00:27:54]}
{[%emt 00:01:03]} 44. Qh3 {[%clk 00:48:06]} {[%emt 00:06:48]} Bd5+ {[%clk
00:28:10]} {[%emt 00:00:17]} 0-1

[Event "ONJK 2024 ABC"]
[Site "Velp, Netherlands"]
[Date "2024.08.07"]
[Round "7.19"]
[White "Van Ewijk, Abel"]
[Black "Vogels, Mathijs"]
[Result "0-1"]
[TimeControl "90 minutes + 30 seconds"]
[WhiteElo "1484"]
[BlackElo "1732"]

1. e4 {[%clk 01:30:58]} {[%emt 00:00:01]} e5 {[%clk 01:30:54]} {[%emt
00:00:06]} 2. Nf3 {[%clk 01:31:25]} {[%emt 00:00:04]} Nc6 {[%clk 01:31:20]}
{[%emt 00:00:04]} 3. d4 {[%clk 01:31:50]} {[%emt 00:00:04]} exd4 {[%clk
01:31:46]} {[%emt 00:00:04]} 4. Nxd4 {[%clk 01:32:15]} {[%emt 00:00:05]} Bc5
{[%clk 01:32:11]} {[%emt 00:00:05]} 5. Nb3 {[%clk 01:32:37]} {[%emt 00:00:08]}
Bb6 {[%clk 01:32:08]} {[%emt 00:00:33]} 6. Qe2 {[%clk 01:32:52]} {[%emt
00:00:15]} Nge7 {[%clk 01:32:16]} {[%emt 00:00:23]} 7. Nc3 {[%clk 01:32:57]}
{[%emt 00:00:25]} d6 {[%clk 01:31:53]} {[%emt 00:00:52]} 8. Be3 {[%clk
01:33:19]} {[%emt 00:00:09]} Be6 {[%clk 01:32:07]} {[%emt 00:00:15]} 9. O-O-O
{[%clk 01:33:08]} {[%emt 00:00:41]} Bxb3 {[%clk 01:32:06]} {[%emt 00:00:31]} 10.
axb3 {[%clk 01:33:10]} {[%emt 00:00:29]} Qd7 {[%clk 01:30:47]} {[%emt
00:01:49]} 11. f4 {[%clk 01:30:44]} {[%emt 00:02:56]} f6 {[%clk 01:28:28]}
{[%emt 00:02:49]} 12. Kb1 {[%clk 01:26:59]} {[%emt 00:04:15]} Bxe3 {[%clk
01:28:23]} {[%emt 00:00:35]} 13. Qxe3 {[%clk 01:27:07]} {[%emt 00:00:22]} O-O-O
{[%clk 01:28:23]} {[%emt 00:00:30]} 14. g4 {[%clk 01:21:24]} {[%emt 00:06:12]}
Kb8 {[%clk 01:27:36]} {[%emt 00:01:18]} 15. f5 {[%clk 01:19:40]} {[%emt
00:02:14]} h6 {[%clk 01:22:18]} {[%emt 00:05:48]} 16. Bc4 {[%clk 01:12:23]}
{[%emt 00:07:46]} g6 {[%clk 01:10:21]} {[%emt 00:12:29]} 17. h3 {[%clk
01:09:09]} {[%emt 00:03:44]} Qe8 {[%clk 01:07:44]} {[%emt 00:03:06]} 18. Be6
{[%clk 01:08:13]} {[%emt 00:01:25]} Ne5 {[%clk 01:05:58]} {[%emt 00:02:17]} 19.
Rd4 {[%clk 01:05:41]} {[%emt 00:03:02]} Nd7 {[%clk 01:04:59]} {[%emt 00:01:28]}
20. Ra4 {[%clk 00:47:57]} {[%emt 00:18:16]} Nc5 {[%clk 01:04:52]} {[%emt
00:00:36]} 21. Ra3 {[%clk 00:48:02]} {[%emt 00:00:23]} a6 {[%clk 01:01:34]}
{[%emt 00:03:50]} 22. Bc4 {[%emt 00:02:56]} gxf5 {[%clk 01:01:01]} {[%emt
00:01:01]} 23. gxf5 {[%clk 00:45:17]} {[%emt 00:00:52]} Nxf5 {[%clk 01:00:40]}
{[%emt 00:00:51]} 24. Qf2 {[%clk 00:44:41]} {[%emt 00:01:03]} Ne7 {[%clk
00:57:07]} {[%emt 00:04:05]} 25. Qxf6 {[%emt 00:01:27]} Nd7 {[%clk 00:52:55]}
{[%emt 00:04:39]} 26. Qd4 {[%clk 00:42:57]} {[%emt 00:01:20]} Nc6 {[%clk
00:53:07]} {[%emt 00:00:19]} 27. Qe3 {[%clk 00:41:53]} {[%emt 00:01:33]} Nb6
{[%clk 00:49:05]} {[%emt 00:04:31]} 28. Be2 {[%clk 00:39:46]} {[%emt 00:02:38]}
d5 {[%clk 00:48:57]} {[%emt 00:00:38]} 29. Qd3 {[%clk 00:32:34]} {[%emt
00:07:42]} dxe4 {[%clk 00:47:54]} {[%emt 00:01:34]} 30. Qxe4 {[%clk 00:32:20]}
{[%emt 00:00:44]} Qxe4 {[%clk 00:47:49]} {[%emt 00:00:35]} 31. Nxe4 {[%clk
00:32:42]} {[%emt 00:00:07]} Rhe8 {[%clk 00:47:46]} {[%emt 00:00:32]} 32. Nc3
{[%clk 00:32:56]} {[%emt 00:00:18]} Re3 {[%clk 00:46:30]} {[%emt 00:01:45]} 33.
Bd3 {[%clk 00:32:37]} {[%emt 00:00:48]} Rde8 {[%clk 00:46:17]} {[%emt
00:00:44]} 34. Kc1 {[%clk 00:31:06]} {[%emt 00:02:01]} Nd4 {[%clk 00:45:51]}
{[%emt 00:00:56]} 35. Ra5 {[%clk 00:29:41]} {[%emt 00:01:56]} Re1+ {[%clk
00:46:09]} {[%emt 00:00:11]} 36. Rxe1 {[%clk 00:29:39]} {[%emt 00:00:32]} Rxe1+
{[%clk 00:46:33]} {[%emt 00:00:06]} 37. Nd1 {[%clk 00:30:00]} {[%emt 00:00:10]}
c6 {[%clk 00:44:34]} {[%emt 00:02:29]} 38. Rh5 {[%clk 00:28:52]} {[%emt
00:01:37]} Nd5 {[%clk 00:44:30]} {[%emt 00:00:35]} 39. Rxh6 {[%clk 00:27:33]}
{[%emt 00:01:49]} Ne3 {[%clk 00:44:31]} {[%emt 00:00:28]} 40. Kd2 {[%clk
00:27:41]} {[%emt 00:00:23]} Nf3+ {[%clk 00:44:52]} {[%emt 00:00:09]} 41. Kc3
{[%clk 00:27:47]} {[%emt 00:00:24]} Nxd1+ {[%clk 00:45:09]} {[%emt 00:00:12]}
42. Kb4 {[%clk 00:27:16]} {[%emt 00:01:02]} Nxb2 {[%clk 00:44:53]} {[%emt
00:00:46]} 43. Rh8+ {[%clk 00:25:48]} {[%emt 00:01:57]} Kc7 {[%clk 00:44:17]}
{[%emt 00:01:07]} 44. Rh7+ {[%clk 00:25:21]} {[%emt 00:00:55]} Kb6 {[%clk
00:42:48]} {[%emt 00:02:00]} 45. Bf5 {[%clk 00:24:23]} {[%emt 00:01:28]} Re8
{[%clk 00:40:18]} {[%emt 00:03:01]} 46. Rd7 {[%clk 00:20:35]} {[%emt 00:04:17]}
Re5 {[%clk 00:39:19]} {[%emt 00:01:30]} 47. Bg4 {[%clk 00:20:09]} {[%emt
00:00:55]} Re3 {[%clk 00:36:24]} {[%emt 00:03:26]} 48. Rg7 {[%clk 00:15:49]}
{[%emt 00:04:50]} a5+ {[%clk 00:36:29]} {[%emt 00:00:26]} 49. Ka3 {[%clk
00:15:58]} {[%emt 00:00:20]} Nc4+ {[%clk 00:36:49]} {[%emt 00:00:10]} 50. Ka2
{[%clk 00:16:07]} {[%emt 00:00:22]} Nd6 {[%clk 00:36:15]} {[%emt 00:01:03]} 51.
Rg6 {[%clk 00:15:42]} {[%emt 00:00:55]} Nb5 {[%clk 00:34:52]} {[%emt 00:01:53]}
52. Rg7 {[%clk 00:15:18]} {[%emt 00:00:55]} Ne5 {[%clk 00:34:12]} {[%emt
00:01:10]} 53. Bc8 {[%clk 00:14:04]} {[%emt 00:01:43]} Nd6 {[%clk 00:34:37]}
{[%emt 00:00:06]} 54. Be6 {[%clk 00:13:47]} {[%emt 00:00:45]} Nd3 {[%clk
00:33:17]} {[%emt 00:01:52]} 55. Bg4 {[%clk 00:12:18]} {[%emt 00:01:57]} Nf2
{[%clk 00:33:25]} {[%emt 00:00:24]} 56. h4 {[%clk 00:09:19]} {[%emt 00:03:28]}
Rg3 {[%clk 00:33:32]} {[%emt 00:00:23]} 57. Rg6 {[%clk 00:08:38]} {[%emt
00:01:10]} Rxg4 {[%clk 00:33:56]} {[%emt 00:00:07]} 58. Rxd6 {[%clk 00:08:07]}
{[%emt 00:01:02]} Rxh4 {[%clk 00:34:20]} {[%emt 00:00:06]} 59. Rd2 {[%clk
00:08:11]} {[%emt 00:00:26]} Ne4 {[%clk 00:34:08]} {[%emt 00:00:42]} 60. Rd4
{[%clk 00:07:55]} {[%emt 00:00:46]} Nc3+ {[%clk 00:34:31]} {[%emt 00:00:07]} 61.
Kb2 {[%clk 00:08:12]} {[%emt 00:00:13]} Rxd4 {[%clk 00:34:56]} {[%emt
00:00:04]} 62. Kxc3 {[%clk 00:08:31]} {[%emt 00:00:12]} Rh4 {[%clk 00:35:13]}
{[%emt 00:00:13]} 63. Kb2 {[%clk 00:06:07]} {[%emt 00:02:52]} Kc5 {[%clk
00:35:31]} {[%emt 00:00:13]} 64. Ka3 {[%clk 00:05:49]} {[%emt 00:00:48]} Rh1
{[%clk 00:35:46]} {[%emt 00:00:15]} 65. Kb2 {[%clk 00:05:55]} {[%emt 00:00:24]}
b5 {[%clk 00:36:11]} {[%emt 00:00:06]} 66. Kc3 {[%clk 00:04:52]} {[%emt
00:01:33]} b4+ {[%clk 00:36:26]} {[%emt 00:00:15]} 67. Kb2 {[%clk 00:04:47]}
{[%emt 00:00:33]} Kd4 {[%clk 00:36:46]} {[%emt 00:00:11]} 68. Ka2 {[%clk
00:04:42]} {[%emt 00:00:36]} c5 {[%clk 00:37:09]} {[%emt 00:00:07]} 69. Kb2
{[%clk 00:04:40]} {[%emt 00:00:32]} Rh2 {[%clk 00:37:30]} {[%emt 00:00:08]} 70.
Kc1 {[%clk 00:04:31]} {[%emt 00:00:37]} Kc3 {[%clk 00:37:50]} {[%emt 00:00:13]}
71. Kb1 {[%clk 00:04:29]} {[%emt 00:00:31]} Rxc2 {[%clk 00:38:08]} {[%emt
00:00:12]} 72. Ka1 {[%clk 00:04:44]} {[%emt 00:00:14]} Kxb3 {[%clk 00:38:28]}
{[%emt 00:00:11]} 73. Kb1 {[%clk 00:05:00]} {[%emt 00:00:15]} Rc4 {[%clk
00:38:51]} {[%emt 00:00:07]} 74. Ka1 {[%clk 00:05:16]} {[%emt 00:00:14]} Rc1#
{[%clk 00:38:47]} {[%emt 00:00:04]} 0-1